bitfinex-derivatives/quotes_SOLF0:USTF0_20241027
["timestamp","ask_amount","ask_price","bid_price","bid_amount"]
[1730003918451,4.06,172.07,172.05,158.26782]
[1730003918647,12.10074598,172.07,172.05,158.26782]
[1730003922652,10.95024598,172.06,172.05,155.35812]
[1730003922851,4.06,172.07,172.05,155.35812]
[1730003923062,8.04074598,172.06,172.05,155.35812]
[1730003923653,2.4086,172.13,172.05,155.35812]
[1730003923850,8.04074598,172.1,172.07,2.9094]
[1730003924955,8.04074598,172.08,172.05,155.35812]
[1730003925151,10.95024598,172.06,172.05,155.35812]
[1730003925355,12.10074598,172.06,172.05,155.35812]
[1730003927654,15.01024598,172.06,172.05,155.35812]
[1730003931861,15.01024598,172.06,172.05,153.40772]
[1730003932062,15.01024598,172.06,172.05,147.82742]
[1730003934962,2.9095,172.06,172.05,147.82742]
[1730003935158,4.06,172.06,172.05,150.73712]
[1730003935563,8.04074598,172.09,172.05,150.73712]
[1730003935763,4.06,172.08,172.05,150.73712]
[1730003938365,6.9692,172.08,172.05,150.73712]
[1730003942468,1.2191,172.13,172.05,155.86816598]
[1730003942671,12.10074598,172.12,172.05,155.86816598]
[1730003943366,2.9088,172.11,172.07,2.9093]
[1730003943562,4.06,172.1,172.07,2.9093]
[1730003944477,4.06,172.09,172.08,2.9092]
[1730003949479,4.06,172.09,172.08,4.36418912]
[1730003951576,2.9082,172.14,172.11,2.9086]
[1730003951776,4.06,172.13,172.11,2.9086]
[1730003952172,4.06,172.13,172.1,2.9088]
[1730003957284,2.9086,172.12,172.08,2.9092]
[1730003957483,12.10074598,172.13,172.06,3.6824]
[1730003957484,12.10074598,172.13,172.09,6.51230106]
[1730003957785,12.10074598,172.13,172.06,11.72314598]
[1730003957989,12.10074598,172.13,172.07,6.51254359]
[1730003958287,2.9088,172.11,172.08,6.51254359]
[1730003958489,2.9088,172.11,172.09,1.45497952]
[1730003958686,2.9088,172.11,172.07,2.9093]
[1730003958888,2.9088,172.11,172.08,6.51369231]
[1730003959088,2.9088,172.11,172.09,1.45502333]
[1730003959288,2.9088,172.11,172.07,2.9093]
[1730003959487,2.9089,172.1,172.08,6.51448109]
[1730003959789,2.9089,172.1,172.06,14.63264598]
[1730003959790,4.06,172.09,172.06,14.63264598]
[1730003959986,6.9691,172.09,172.07,6.51459687]
[1730003960297,4.06,172.09,172.05,147.82742]
[1730003960482,4.06,172.09,172.06,6.51578743]
[1730003960692,4.06,172.09,172.05,147.82742]
[1730003960891,4.06,172.09,172.06,6.5157675]
[1730003961091,4.06,172.09,172.05,147.82742]
[1730003961398,2.9092,172.08,172.06,1.45523232]
[1730003961594,2.9092,172.08,172.05,150.73712]
[1730003961796,2.9092,172.08,172.06,1.45523266]
[1730003961993,2.9092,172.08,172.05,150.73712]
[1730003962200,2.9092,172.08,172.06,1.45523266]
[1730003962400,4.06,172.09,172.05,150.73712]
[1730003962701,4.06,172.09,172.06,1.45523249]
[1730003962995,4.06,172.09,172.05,147.82742]
[1730003963203,2.9093,172.08,172.06,1.45523249]
[1730003963502,2.9093,172.08,172.05,147.82742]
[1730003963702,2.9093,172.08,172.06,6.5159746]
[1730003963899,2.9093,172.08,172.05,147.82742]
[1730003964099,10.95004598,172.08,172.05,147.82742]
[1730003964298,10.95004598,172.08,172.06,1.45521856]
[1730003964597,8.04074598,172.08,172.05,147.82742]
[1730003964803,2.9095,172.07,172.05,147.82742]
[1730003964993,8.04074598,172.08,172.05,147.82742]
[1730003965399,10.94994598,172.08,172.05,147.82742]
[1730003965598,8.04074598,172.08,172.05,147.82742]
[1730003966403,2.9094,172.07,172.05,147.82742]
[1730003966804,10.94994598,172.08,172.05,147.82742]
[1730003967209,8.04074598,172.08,172.05,147.82742]
[1730003967608,2.9094,172.07,172.05,147.82742]
[1730003968409,2.9095,172.06,172.05,147.82742]
[1730003974915,4.06,172.06,172.05,158.77776598]
[1730003975708,8.04074598,172.11,172.05,158.77776598]
[1730003975910,4.06,172.1,172.08,8.04074598]
[1730003976114,4.06,172.1,172.05,147.82742]
[1730003976115,4.06,172.09,172.05,147.82742]
[1730003976316,4.06,172.1,172.06,6.51330862]
[1730003976518,4.06,172.1,172.07,6.51330862]
[1730003976713,4.06,172.1,172.05,147.82742]
[1730003976914,4.06,172.1,172.09,2.9089]
[1730003977213,4.06,172.1,172.09,4.36397566]
[1730003978214,4.06,172.1,172.09,2.9089]
[1730003978411,4.06,172.1,172.09,4.36392558]
[1730003978607,4.06,172.1,172.09,9.42152571]
[1730003980217,2.9081,172.15,172.11,2.9087]
[1730003980522,4.06,172.14,172.11,10.94944598]
[1730003981716,4.06,172.14,172.06,3.696]
[1730003981717,56.52,172.16,172.12,8.04074598]
[1730003981920,4.06,172.15,172.12,8.04074598]
[1730003982317,4.06,172.15,172.14,8.04074598]
[1730003985014,56.52,172.16,172.14,8.04074598]
[1730003985218,4.06,172.15,172.14,8.04074598]
[1730003985826,4.06,172.15,172.14,10.94894598]
[1730003988619,4.06,172.18,172.17,2.9077]
[1730003988815,4.06,172.18,172.17,10.94844598]
[1730003989022,2.9071,172.21,172.17,10.94844598]
[1730003989216,4.06,172.18,172.17,10.94844598]
[1730003989422,1.2512,172.22,172.17,10.94844598]
[1730003989631,1.2512,172.22,172.07,4.06]
[1730003989632,4.06,172.21,172.19,8.04074598]
[1730003990519,4.06,172.21,172.19,10.94794598]
[1730003990719,4.06,172.21,172.19,8.04074598]
[1730003994235,2.9069,172.22,172.2,8.04074598]
[1730003994422,4.06,172.21,172.2,8.04074598]
[1730003997925,4.06,172.21,172.2,10.94794598]
[1730003998125,4.06,172.21,172.2,8.04074598]
[1730004002637,4.06,172.21,172.2,10.94794598]
[1730004003330,4.06,172.21,172.2,8.04074598]
[1730004007542,4.06,172.21,172.2,10.94794598]
[1730004027262,10.48074598,172.29,172.22,2.9068]
[1730004027451,10.48074598,172.29,172.15,4.06]
[1730004027452,4.06,172.28,172.25,8.04074598]
[1730004027647,2.9061,172.27,172.25,8.04074598]
[1730004027853,4.06,172.26,172.15,4.06]
[1730004028058,4.06,172.26,172.25,8.04074598]
[1730004034261,6.9662,172.26,172.25,8.04074598]
[1730004035062,6.9462,172.26,172.25,8.04074598]
[1730004053684,4.04,172.26,172.07,19.49045558]
[1730004053887,4.04,172.26,172.22,8.04074598]
[1730004055587,4.04,172.26,172.23,8.04074598]
[1730004056381,2.9066,172.24,172.23,8.04074598]
[1730004056885,4.04,172.26,172.23,8.04074598]
[1730004057083,4.04,172.26,172.25,8.04074598]
[1730004059186,4.04,172.26,172.23,10.94724598]
[1730004059389,4.04,172.26,172.12,6.62665249]
[1730004059685,8.04074598,172.25,172.19,8.04074598]
[1730004060686,2.9068,172.23,172.2,1.45432686]
[1730004060896,4.04,172.22,172.19,8.04074598]
[1730004061191,4.04,172.22,172.2,1.45432661]
[1730004061388,4.04,172.22,172.19,8.04074598]
[1730004062897,4.04,172.22,172.21,10.94774598]
[1730004063299,4.04,172.22,172.21,12.40206244]
[1730004063498,2.44,172.29,172.21,9.49506244]
[1730004063799,4.04,172.28,172.24,8.04074598]
[1730004064190,2.906,172.27,172.24,8.04074598]
[1730004067185,4.04,172.26,172.24,8.04074598]
[1730004074401,2.906,172.27,172.24,8.04074598]
[1730004074594,4.04,172.26,172.24,8.04074598]
[1730004080404,4.04,172.25,172.24,8.04074598]
[1730004081198,4.04,172.25,172.24,9.49478811]
[1730004084600,4.04,172.25,172.24,8.04074598]
[1730004084801,4.04,172.25,172.24,9.49477058]
[1730004089406,4.04,172.25,172.24,8.04074598]
[1730004089608,4.04,172.25,172.24,9.49476434]
[1730004090405,4.04,172.25,172.24,8.04074598]
[1730004090600,4.04,172.25,172.24,9.49477058]
[1730004090807,10.92925669,172.34,172.24,8.04074598]
[1730004091004,10.92925669,172.34,172.28,8.04074598]
[1730004091005,4.04,172.33,172.28,8.04074598]
[1730004092510,2.9055,172.3,172.28,8.04074598]
[1730004092811,4.04,172.29,172.28,8.04074598]
[1730004093212,2.9055,172.3,172.28,8.04074598]
[1730004093414,4.04,172.29,172.28,8.04074598]
[1730004096723,4.04,172.29,172.28,10.94654598]
[1730004097318,4.04,172.3,172.28,10.94654598]
[1730004097524,4.04,172.3,172.29,8.04074598]
[1730004099431,4.04,172.3,172.29,10.94644598]
[1730004100831,4.04,172.3,172.29,8.04074598]
[1730004102524,2.9052,172.32,172.29,8.04074598]
[1730004102718,4.04,172.31,172.28,2.9058]
[1730004105638,4.04,172.31,172.3,8.04074598]
[1730004111536,2.9049,172.34,172.3,8.04074598]
[1730004111840,6.9449,172.34,172.33,8.04074598]
[1730004117143,6.9448,172.34,172.33,8.04074598]
[1730004117540,6.9448,172.34,172.32,8.04074598]
[1730004121943,4.04,172.34,172.32,8.04074598]
[1730004122144,4.04,172.34,172.33,8.04074598]
[1730004123854,4.04,172.34,172.33,10.94574598]
[1730004124151,4.04,172.34,172.33,8.04074598]
[1730004127442,2.9045,172.36,172.33,8.04074598]
[1730004127648,4.04,172.34,172.32,2.9051]
[1730004129257,4.04,172.34,172.27,1.2332]
[1730004129554,4.04,172.34,172.33,10.94574598]
[1730004130152,2.9041,172.39,172.35,2.9045]
[1730004130360,4.04,172.38,172.36,8.04074598]
[1730004131158,4.04,172.37,172.36,8.04074598]
[1730004137154,2.904,172.39,172.36,8.04074598]
[1730004137360,2.904,172.39,172.38,8.04074598]
[1730004137555,6.944,172.39,172.38,8.04074598]
[1730004138165,2.9045,172.37,172.32,2.9051]
[1730004138367,12.08074598,172.39,172.32,8.04074598]
[1730004139067,2.9046,172.36,172.32,2.9052]
[1730004139268,4.04,172.35,172.3,8.04074598]
[1730004140267,2.905,172.34,172.3,10.94624598]
[1730004142068,2.9053,172.32,172.27,2.906]
[1730004142270,4.04,172.31,172.28,8.04074598]
[1730004142472,4.04,172.3,172.28,8.04074598]
[1730004142671,4.04,172.3,172.26,8.04074598]
[1730004143468,6.9455,172.3,172.26,8.04074598]
[1730004144482,6.9455,172.3,172.27,8.04074598]
[1730004145375,5.3888,172.34,172.29,10.94624598]
[1730004145575,4.04,172.33,172.31,8.04074598]
[1730004150983,2.9048,172.34,172.31,8.04074598]
[1730004151289,4.04,172.32,172.31,8.04074598]
[1730004152186,4.04,172.32,172.3,2.9055]
[1730004152386,4.04,172.32,172.3,10.94624598]
[1730004160992,4.04,172.32,172.3,8.04074598]
[1730004161197,4.04,172.32,172.29,8.04074598]
[1730004162398,6.9452,172.32,172.29,8.04074598]
[1730004168586,4.04,172.32,172.29,8.04074598]
[1730004168799,4.04,172.32,172.29,10.94634598]
[1730004172488,1.1742,172.37,172.31,8.04074598]
[1730004172693,4.04,172.36,172.33,8.04074598]
[1730004172893,9.31964598,172.38,172.33,8.04074598]
[1730004173088,4.04,172.37,172.34,8.04074598]
[1730004173293,4.04,172.37,172.35,8.04074598]
[1730004182504,4.04,172.37,172.34,10.94554598]
[1730004183106,4.04,172.37,172.26,1.2326]
[1730004183407,2.9046,172.36,172.32,8.04074598]
[1730004183604,2.9046,172.36,172.33,1.45302305]
[1730004183806,2.9046,172.36,172.32,10.94584598]
[1730004184108,2.9046,172.36,172.33,1.45304725]
[1730004184299,2.9046,172.36,172.32,10.94584598]
[1730004184503,2.9046,172.36,172.33,1.45310762]
[1730004184707,2.9046,172.36,172.32,10.94584598]
[1730004184914,2.9046,172.36,172.33,1.45311591]
[1730004185212,2.9046,172.36,172.32,10.94584598]
[1730004185407,2.9046,172.36,172.33,1.45311588]
[1730004185607,2.9046,172.36,172.32,10.94584598]
[1730004185811,2.9046,172.36,172.33,1.45306889]
[1730004186010,2.9046,172.36,172.32,10.94584598]
[1730004186209,2.9046,172.36,172.33,1.45309381]
[1730004186411,2.9046,172.36,172.32,10.94584598]
[1730004186604,2.9046,172.36,172.33,1.45311873]
[1730004186803,2.9046,172.36,172.32,10.94584598]
[1730004187109,2.9046,172.36,172.33,1.45311873]
[1730004187306,2.9046,172.36,172.32,10.94584598]
[1730004187499,2.9046,172.36,172.33,1.45311873]
[1730004187709,2.9046,172.36,172.32,10.94584598]
[1730004187909,8.04074598,172.36,172.33,1.45311873]
[1730004188106,8.04074598,172.35,172.29,10.94624598]
[1730004188408,8.04074598,172.33,172.3,1.45317098]
[1730004188711,8.04074598,172.33,172.27,8.04074598]
[1730004188712,4.04,172.32,172.27,8.04074598]
[1730004189108,4.04,172.32,172.28,6.50382175]
[1730004189406,6.9453,172.32,172.29,1.45328474]
[1730004189615,6.9453,172.32,172.3,1.45328474]
[1730004189911,6.9453,172.32,172.28,2.9058]
[1730004190111,6.9453,172.32,172.29,1.45330125]
[1730004190309,12.08074598,172.32,172.3,1.45330125]
[1730004190611,2.9057,172.3,172.26,10.94674598]
[1730004190812,2.9057,172.3,172.27,8.82998682]
[1730004191111,2.9057,172.3,172.28,1.4533567]
[1730004191302,2.9057,172.3,172.29,1.4533567]
[1730004192708,2.9057,172.3,172.26,10.94674598]
[1730004192910,2.9057,172.3,172.29,1.45336293]
[1730004195905,12.08074598,172.32,172.25,147.49005]
[1730004195906,2.9058,172.29,172.25,147.49005]
[1730004196107,12.08074598,172.28,172.26,8.82761144]
[1730004196307,12.08074598,172.28,172.25,147.49005]
[1730004196308,12.08074598,172.28,172.27,1.45344671]
[1730004197223,14.98654598,172.28,172.27,1.45344671]
[1730004197513,12.08074598,172.28,172.25,147.49005]
[1730004197716,10.94674598,172.27,172.26,1.45355188]
[1730004199708,2.906,172.27,172.26,1.45355188]
[1730004200113,2.906,172.27,172.25,147.49005]
[1730004200316,2.906,172.27,172.26,1.45355076]
[1730004200816,4.04,172.27,172.26,1.45355076]
[1730004207830,4.04,172.27,172.26,1.45352393]
[1730004208127,12.08074598,172.27,172.26,1.45352393]
[1730004208325,14.98674598,172.27,172.26,1.45352393]
[1730004210014,12.08074598,172.27,172.26,1.45352393]
[1730004211027,14.98674598,172.27,172.25,147.49005]
[1730004211222,8.04074598,172.26,172.25,147.49005]
[1730004213715,6.946,172.27,172.25,147.49005]
[1730004213921,4.04,172.27,172.25,147.49005]
[1730004215324,1.2314,172.34,172.26,1.45349383]
[1730004215325,8.04074598,172.31,172.26,1.45349383]
[1730004215529,4.04,172.3,172.25,155.53079598]
[1730004215836,4.04,172.3,172.27,2.9059]
[1730004218016,2.9053,172.31,172.27,10.94664598]
[1730004218217,4.04,172.3,172.27,10.94664598]
[1730004218431,4.04,172.3,172.28,8.04074598]
[1730004219023,1.2314,172.34,172.29,2.9057]
[1730004219024,10.94574598,172.34,172.29,2.9057]
[1730004219223,4.04,172.33,172.29,2.9057]
[1730004221028,6.945,172.33,172.29,2.9057]
[1730004221634,4.04,172.33,172.29,2.9057]
[1730004224732,4.04,172.33,172.3,1.45321746]
[1730004224936,4.04,172.33,172.29,2.9057]
[1730004225237,4.04,172.33,172.3,1.4531919]
[1730004225538,4.04,172.33,172.29,2.9057]
[1730004225835,4.04,172.33,172.3,1.45320444]
[1730004226035,6.945,172.33,172.29,2.9057]
[1730004226226,6.945,172.33,172.3,1.45322962]
[1730004226426,6.945,172.33,172.29,2.9057]
[1730004226627,6.945,172.33,172.3,1.45321696]
[1730004226840,6.945,172.33,172.29,2.9057]
[1730004227138,6.945,172.33,172.3,1.45321048]
[1730004227436,6.945,172.33,172.29,2.9057]
[1730004227631,6.945,172.33,172.3,1.45321188]
[1730004227831,6.945,172.33,172.29,2.9057]
[1730004228143,6.945,172.33,172.3,1.45322962]
[1730004228338,6.945,172.33,172.29,2.9057]
[1730004228639,6.945,172.33,172.3,1.45322962]
[1730004228939,6.945,172.33,172.29,2.9057]
[1730004234738,2.9055,172.3,172.26,5.2941]
[1730004234942,12.08074598,172.29,172.27,1.45335589]
[1730004235240,4.04,172.28,172.25,147.49005]
[1730004235442,4.04,172.28,172.26,1.45346154]
[1730004235743,6.9459,172.28,172.25,147.49005]
[1730004235941,6.9459,172.28,172.26,1.45352652]
[1730004236142,6.9459,172.28,172.25,147.49005]
[1730004237039,14.98664598,172.28,172.25,147.49005]
[1730004237439,12.08074598,172.28,172.25,147.49005]
[1730004238744,14.98664598,172.28,172.25,147.49005]
[1730004245949,4.04,172.28,172.25,150.39635]
[1730004246447,4.04,172.28,172.26,1.45353492]
[1730004246645,4.04,172.28,172.25,158.43709598]
[1730004246646,4.04,172.28,172.25,155.53079598]
[1730004246853,4.04,172.28,172.26,4.3595101]
[1730004247048,4.04,172.28,172.27,1.4535101]
[1730004248247,4.04,172.28,172.25,158.43709598]
[1730004248448,4.04,172.28,172.26,1.45345969]
[1730004248646,4.04,172.28,172.25,158.43709598]
[1730004248851,4.04,172.28,172.26,1.45345969]
[1730004249049,4.04,172.28,172.27,1.45345969]
[1730004250357,4.04,172.28,172.27,4.35945969]
[1730004250655,4.04,172.28,172.27,1.45345969]
[1730004251047,10.94614598,172.31,172.28,2.9058]
[1730004251246,4.04,172.3,172.28,8.04074598]
[1730004251957,4.04,172.3,172.29,2.9056]
[1730004252153,4.04,172.3,172.29,4.35892383]
[1730004252359,4.04,172.3,172.29,4.35892243]
[1730004256174,4.04,172.3,172.29,2.9056]
[1730004256463,4.04,172.3,172.29,4.35892091]
[1730004260058,4.04,172.3,172.29,2.9056]
[1730004260261,4.04,172.3,172.29,4.35897232]
[1730004263763,4.04,172.3,172.29,2.9056]
[1730004263959,2.905,172.33,172.29,4.35897091]
[1730004264262,4.04,172.32,172.29,2.9056]
[1730004266761,4.04,172.32,172.3,1.45332747]
[1730004266959,4.04,172.32,172.29,2.9056]
[1730004267159,4.04,172.32,172.3,1.45332747]
[1730004267365,4.04,172.32,172.29,2.9056]
[1730004267570,4.04,172.32,172.3,1.45333614]
[1730004267771,4.04,172.32,172.29,2.9056]
[1730004268073,4.04,172.32,172.3,1.45331097]
[1730004268370,4.04,172.32,172.29,2.9056]
[1730004268563,4.04,172.32,172.3,1.45331122]
[1730004268765,4.04,172.32,172.29,2.9056]
[1730004269359,6.9452,172.32,172.29,2.9056]
[1730004269874,6.9452,172.32,172.3,1.45331122]
[1730004270472,6.9452,172.32,172.29,2.9056]
[1730004272573,4.04,172.31,172.29,2.9056]
[1730004273370,4.04,172.31,172.3,1.45331108]
[1730004277280,4.04,172.31,172.29,2.9056]
[1730004277680,6.9453,172.31,172.3,1.45332208]
[1730004277977,6.9453,172.31,172.27,10.94654598]
[1730004277978,6.9453,172.31,172.27,2.9058]
[1730004278185,6.9453,172.31,172.28,8.82511485]
[1730004278480,6.9453,172.31,172.29,1.45334804]
[1730004278682,6.9453,172.31,172.28,2.9058]
[1730004278867,6.9453,172.31,172.29,1.45334804]
[1730004279074,6.9453,172.31,172.28,2.9058]
[1730004279279,6.9453,172.31,172.29,1.45334678]
[1730004279475,6.9453,172.31,172.28,2.9058]
[1730004279683,6.9453,172.31,172.29,1.45335554]
[1730004279884,6.9453,172.31,172.28,2.9058]
[1730004280085,6.9453,172.31,172.29,1.45335804]
[1730004280285,6.9453,172.31,172.28,2.9058]
[1730004280485,6.9453,172.31,172.29,1.45335944]
[1730004280786,6.9453,172.31,172.28,2.9058]
[1730004280989,6.9453,172.31,172.29,1.45335944]
[1730004281179,6.9453,172.31,172.28,2.9058]
[1730004281374,6.9453,172.31,172.29,1.45335944]
[1730004281587,6.9453,172.31,172.28,2.9058]
[1730004281888,6.9453,172.31,172.29,1.45335944]
[1730004282087,6.9453,172.31,172.28,2.9058]
[1730004282286,6.9453,172.31,172.29,1.45335944]
[1730004282486,6.9453,172.31,172.28,2.9058]
[1730004282691,6.9453,172.31,172.29,1.45335944]
[1730004282875,6.9453,172.31,172.28,2.9058]
[1730004283198,6.9453,172.31,172.29,1.45335944]
[1730004283384,6.9453,172.31,172.28,2.9058]
[1730004283580,6.9453,172.31,172.29,1.45335944]
[1730004283780,6.9453,172.31,172.28,2.9058]
[1730004284092,6.9453,172.31,172.29,1.45335919]
[1730004284284,6.9453,172.31,172.3,1.45335919]
[1730004287490,4.04,172.31,172.3,1.45335919]
[1730004289599,4.04,172.31,172.29,2.9056]
[1730004289782,4.04,172.31,172.3,1.45336053]
[1730004292590,4.04,172.31,172.3,6.68404537]
[1730004292793,4.04,172.31,172.3,19.7748127]
[1730004293496,4.04,172.31,172.3,19.77447457]
[1730004295486,4.04,172.31,172.3,19.77334792]
[1730004300191,4.04,172.31,172.3,8.82710194]
[1730004300394,4.04,172.31,172.3,1.45315663]
[1730004300599,4.04,172.31,172.28,2.9058]
[1730004300797,12.08074598,172.31,172.3,1.45326164]
[1730004300991,14.98604598,172.31,172.3,1.45326164]
[1730004301996,2.9056,172.3,172.26,2.9061]
[1730004302300,10.94634598,172.3,172.27,8.83055438]
[1730004302499,10.94634598,172.3,172.28,8.83055438]
[1730004302700,10.94634598,172.3,172.29,1.45343658]
[1730004303297,10.94634598,172.3,172.26,2.9061]
[1730004303493,10.94634598,172.3,172.29,1.4534506]
[1730004303696,10.94634598,172.3,172.26,2.9061]
[1730004303897,10.94634598,172.3,172.27,8.83256231]
[1730004304099,8.04074598,172.29,172.28,1.45346347]
[1730004304296,10.94644598,172.29,172.28,1.45346347]
[1730004304495,10.94644598,172.29,172.25,147.49005]
[1730004304496,8.04074598,172.29,172.25,147.49005]
[1730004304695,8.04074598,172.27,172.26,1.45354184]
[1730004304902,12.08074598,172.27,172.26,1.45354184]
[1730004306703,4.04,172.27,172.26,1.45354184]
[1730004306897,4.04,172.27,172.26,8.83573435]
[1730004307092,4.04,172.27,172.26,8.83573]
[1730004309398,4.04,172.27,172.26,3.77919809]
[1730004310202,8.04074598,172.29,172.26,3.77919809]
[1730004310502,4.04,172.28,172.27,8.83547352]
[1730004310704,4.04,172.28,172.27,5.05637968]
[1730004311004,4.04,172.28,172.27,8.83531955]
[1730004311402,4.04,172.28,172.27,11.74131955]
[1730004314411,4.04,172.28,172.27,2.906]
[1730004314612,4.04,172.28,172.27,11.7435792]
[1730004318117,4.04,172.28,172.27,11.74345549]
[1730004321817,4.04,172.28,172.27,11.74488614]
[1730004323422,4.04,172.28,172.27,8.83888614]
[1730004323630,6.9458,172.28,172.27,8.83888614]
[1730004323813,6.9458,172.28,172.27,1.45342318]
[1730004326718,14.98654598,172.28,172.27,1.45342318]
[1730004328821,2.9062,172.26,172.25,147.49005]
[1730004329027,10.94694598,172.26,172.25,147.49005]
[1730004329822,10.94694598,172.26,172.25,143.59365]
[1730004331435,10.94694598,172.26,172.25,74.22160796]
[1730004331629,10.94694598,172.26,172.25,52.78151628]
[1730004331833,13.85972355,172.26,172.25,52.78151628]
[1730004334534,2.9071,172.21,172.15,2.908]
[1730004334735,8.04074598,172.18,172.15,2.908]
[1730004334929,8.04074598,172.18,172.16,5.05233032]
[1730004335233,8.04074598,172.18,172.15,2.908]
[1730004335435,8.04074598,172.18,172.16,5.04846053]
[1730004335733,8.04074598,172.18,172.15,2.908]
[1730004335937,8.04074598,172.18,172.16,5.04846053]
[1730004336234,8.04074598,172.18,172.16,2.9078]
[1730004352749,8.04074598,172.17,172.12,2.3574]
[1730004352948,8.04074598,172.15,172.13,1.45411645]
[1730004353149,4.04,172.14,172.12,1.1857]
[1730004353950,4.04,172.14,172.13,2.9083]
[1730004354752,4.04,172.14,172.09,8.04074598]
[1730004355055,4.04,172.14,172.11,2.9086]
[1730004355254,12.08074598,172.14,172.11,2.9086]
[1730004355949,12.08074598,172.14,172.12,2.9085]
[1730004361166,12.08074598,172.14,172.13,2.9084]
[1730004361358,8.04074598,172.14,172.13,2.9084]
[1730004361559,4.04,172.14,172.12,8.04074598]
[1730004361764,4.04,172.14,172.13,1.2878]
[1730004362060,4.04,172.14,172.1,5.02948692]
[1730004362257,4.04,172.14,172.11,1.45427749]
[1730004362459,4.04,172.14,172.08,9.30934598]
[1730004362658,4.04,172.14,172.09,6.48416056]
[1730004362860,4.04,172.14,172.1,1.45434501]
[1730004363162,8.04074598,172.11,172.04,5.03089423]
[1730004363357,1.2326,172.21,171.96,5.8224]
[1730004363358,8.04074598,172.06,172.01,8.04074598]
[1730004363558,1.2326,172.21,172.03,8.04074598]
[1730004363559,4.04,172.05,172.03,8.04074598]
[1730004363759,8.04074598,172.08,172.07,2.9093]
[1730004363959,12.08074598,172.08,172.07,2.9093]
[1730004366158,4.04,172.08,172.07,2.9093]
[1730004371162,4.04,172.08,172.03,8.04074598]
[1730004371163,4.04,172.08,172.03,5.02271715]
[1730004371361,4.04,172.08,172.03,3.6666]
[1730004371553,4.04,172.08,172.03,11.70734598]
[1730004371757,4.04,172.08,172.07,2.9094]
[1730004374072,8.04074598,172.11,172.1,2.9089]
[1730004374268,12.08074598,172.11,172.06,8.04074598]
[1730004375468,12.08074598,172.11,172.09,2.9089]
[1730004376575,8.04074598,172.1,172.03,11.70734598]
[1730004377162,8.04074598,172.06,172.03,3.6666]
[1730004377370,4.04,172.05,172.03,3.6666]
[1730004377576,4.04,172.04,172.03,3.6666]
[1730004378379,2.441,172.15,172.03,11.70734598]
[1730004378668,8.04074598,172.11,172.07,2.9092]
[1730004378873,8.04074598,172.09,172.03,11.70734598]
[1730004379468,8.04074598,172.09,172.05,2.9096]
[1730004380066,10.94974598,172.09,172.06,2.9095]
[1730004380268,8.04074598,172.09,172.06,2.9095]
[1730004381769,2.9091,172.09,172.06,2.9095]
[1730004382068,8.04074598,172.09,172.05,2.9097]
[1730004382262,8.04074598,172.09,172.03,3.6666]
[1730004382263,8.04074598,172.07,172.03,3.6666]
[1730004382467,4.04,172.06,172.03,3.6666]
[1730004383362,4.04,172.06,172.04,2.9099]
[1730004387483,4.04,172.05,172.03,11.70734598]
[1730004389370,4.04,172.05,172.04,2.9099]
[1730004390470,8.04074598,172.09,172.06,2.9094]
[1730004390670,4.04,172.08,172.06,2.9094]
[1730004391067,11.31615015,172.22,172.04,8.04074598]
[1730004391272,8.04074598,172.13,172.06,8.04074598]
[1730004391475,4.04,172.12,172.06,8.04074598]
[1730004391873,4.04,172.12,172.09,2.909]
[1730004394476,4.04,172.11,172.1,8.04074598]
[1730004395273,10.94874598,172.16,172.11,2.9086]
[1730004395468,5.50235015,172.22,172.12,8.04074598]
[1730004395469,4.04,172.15,172.12,8.04074598]
[1730004395672,4.04,172.14,172.12,8.04074598]
[1730004395980,4.04,172.13,172.12,8.04074598]
[1730004397283,4.04,172.13,172.12,10.94924598]